[Event "ROU-ch Open 2021"]
[Site "Iasi"]
[Date "2021.04.25"]
[Round "9.11"]
[White "Albu, George"]
[Black "Zubcu, Vlad-George"]
[Result "1-0"]
[ECO "E25"]
[WhiteElo "2050"]
[BlackElo "2168"]
[Annotator "ChessBase"]
[PlyCount "57"]
[EventDate "2021.04.19"]
[EventType "swiss"]
[EventCountry "ROU"]
[SourceTitle "playchess.com"]
[Source "ChessBase"]
[SourceQuality "1"]
[TimeControl "5400+30"]

1. d4 {[%emt 0:04:46]} Nf6 {[%emt 0:00:30]} 2. c4 {[%emt 0:00:04]} e6 {[%emt 0:00:04]} 3. Nc3 {[%emt 0:00:05]} Bb4 {[%emt 0:00:03]} 4. f3 {[%emt 0:00:05]} d5 {[%emt 0:03:37]} 5. a3 {[%emt 0:00:33]} Bxc3+ {[%emt 0:00:06]} 6. bxc3 {[%emt 0:00:04]} c5 {[%emt 0:00:03]} 7. cxd5 {[%emt 0:00:11]} exd5 {[%emt 0:00:05]} 8. e3 {[%emt 0:00:07]} c4 {[%emt 0:00:04]} 9. g4 {[%emt 0:00:05]} Nc6 {[%emt 0:06:06]} 10. Ne2 {[%emt 0:00:20]} Na5 {[%emt 0:00:50]} 11. Bg2 {[%emt 0:00:10]} Nb3 {[%emt 0:00:05]} 12. Rb1 {[%emt 0:00:05]} O-O {[%emt 0:00:32]} 13. O-O {[%emt 0:00:05]} b5 {[%emt 0:03:16]} 14. e4 {[%emt 0:01:31]} Ne8 {[%emt 0:08:12]} 15. Be3 {[%emt 0:19:22]} a5 {[%emt 0:01:16]} 16. Ng3 {[%emt 0:06:41]} Nc7 {[%emt 0:01:34]} 17. e5 {[%emt 0:04:55]} Ra6 {[%emt 0:01:48]} 18. f4 {[%emt 0:01:36]} b4 {[%emt 0:01:00]} 19. axb4 {[%emt 0:06:01]} axb4 {[%emt 0:00:07]} 20. cxb4 {[%emt 0:08:40]} Qe7 {[%emt 0:00:07]} 21. f5 {[%emt 0:01:58]} Qxb4 {[%emt 0:00:56]} 22. f6 {[%emt 0:01:03]} Qc3 {[%emt 0:00:45]} 23. Qe2 {[%emt 0:21:46]} Nxd4 {[%emt 0:05:59]} 24. Qf2 {[%emt 0:00:06]} Nde6 {[%emt 0:00:25]} 25. Nf5 {[%emt 0:01:20]} g6 {[%emt 0:02:19]} 26. Qh4 {[%emt 0:04:58]} Qxe5 {[%emt 0:06:50]} 27. Rbe1 {[%emt 0:08:13]} Qb2 {[%emt 0:01:35]} 28. Rf3 {[%emt 0:00:20]} Ra2 {[%emt 0:03:30]} 29. Qxh7+ {[%emt 0:00:57]} 1-0

[Event "ROU-ch Open 2021"]
[Site "Iasi"]
[Date "2021.04.25"]
[Round "9.12"]
[White "Filip, Andrei (L.)"]
[Black "Ignat, Matei-Marius"]
[Result "1/2-1/2"]
[ECO "C07"]
[WhiteElo "2168"]
[BlackElo "1978"]
[Annotator "ChessBase"]
[PlyCount "81"]
[EventDate "2021.04.19"]
[EventType "swiss"]
[EventCountry "ROU"]
[SourceTitle "playchess.com"]
[Source "ChessBase"]
[SourceQuality "1"]
[TimeControl "5400+30"]

1. e4 {[%emt 0:00:00]} e6 {[%emt 0:00:00]} 2. d4 {[%emt 0:00:00]} d5 {[%emt 0:00:00]} 3. Nd2 {[%emt 0:00:00]} c5 {[%emt 0:00:00]} 4. exd5 {[%emt 0:00:17]} Qxd5 {[%emt 0:00:00]} 5. Ngf3 {[%emt 0:00:16]} cxd4 {[%emt 0:00:04]} 6. Bc4 {[%emt 0:00:25]} Qd6 {[%emt 0:00:11]} 7. O-O {[%emt 0:00:45]} Nf6 {[%emt 0:00:13]} 8. Re1 {[%emt 0:03:06]} Nc6 {[%emt 0:05:52]} 9. Nb3 {[%emt 0:00:24]} Be7 {[%emt 0:02:08]} 10. Nbxd4 {[%emt 0:02:35]} Nxd4 {[%emt 0:00:50]} 11. Nxd4 {[%emt 0:00:11]} O-O {[%emt 0:02:00]} 12. c3 {[%emt 0:02:23]} Qc7 {[%emt 0:09:28]} 13. Bf1 {[%emt 0:01:45]} b6 {[%emt 0:08:00]} 14. Bg5 {[%emt 0:09:16]} Bb7 {[%emt 0:06:05]} 15. Bh4 {[%emt 0:07:40]} Rad8 {[%emt 0:14:17]} 16. Qe2 {[%emt 0:04:20]} Nd5 {[%emt 0:11:07]} 17. Bg3 {[%emt 0:10:45]} Qc8 {[%emt 0:09:07]} 18. Rad1 {[%emt 0:05:10]} a6 {[%emt 0:09:20]} 19. Qc2 {[%emt 0:11:07]} Rfe8 {[%emt 0:01:48]} 20. Be2 {[%emt 0:01:52]} Nf6 {[%emt 0:06:51]} 21. Bf3 {[%emt 0:04:55]} Bc5 {[%emt 0:01:38]} 22. Bxb7 {[%emt 0:03:38]} Qxb7 {[%emt 0:00:03]} 23. Nf3 {[%emt 0:05:54]} b5 {[%emt 0:00:51]} 24. Be5 {[%emt 0:03:25]} Rxd1 {[%emt 0:02:47]} 25. Rxd1 {[%emt 0:00:43]} Ne4 {[%emt 0:00:08]} 26. Bd4 {[%emt 0:01:13]} h6 {[%emt 0:00:49]} 27. Bxc5 {[%emt 0:05:08]} Nxc5 {[%emt 0:00:01]} 28. h3 {[%emt 0:00:50]} Qc7 {[%emt 0:01:26]} 29. b3 {[%emt 0:04:30]} Nd7 {[%emt 0:00:51]} 30. Qd3 {[%emt 0:03:24]} Nb6 {[%emt 0:02:55]} 31. Qd6 {[%emt 0:01:28]} Rc8 {[%emt 0:00:05]} 32. Qxc7 {[%emt 0:00:56]} Rxc7 {[%emt 0:00:01]} 33. Rd8+ {[%emt 0:00:13]} Kh7 {[%emt 0:00:04]} 34. Rd6 {[%emt 0:00:13]} Nd5 {[%emt 0:00:34]} 35. c4 {[%emt 0:02:51]} bxc4 {[%emt 0:00:01]} 36. bxc4 {[%emt 0:00:06]} Rxc4 {[%emt 0:00:18]} 37. Rxa6 {[%emt 0:00:06]} Rc1+ {[%emt 0:00:17]} 38. Kh2 {[%emt 0:00:01]} Rc2 {[%emt 0:00:04]} 39. Kg3 {[%emt 0:01:24]} Nb4 {[%emt 0:00:30]} 40. Ra7 {[%emt 0:01:21]} f6 {[%emt 0:04:58]} 41. Nd4 1/2-1/2

[Event "ROU-ch Open 2021"]
[Site "Iasi"]
[Date "2021.04.25"]
[Round "9.17"]
[White "Nechita, Vlad-Mihai"]
[Black "Martian, Dragos-Daniel"]
[Result "0-1"]
[ECO "A47"]
[WhiteElo "1893"]
[BlackElo "2198"]
[Annotator "ChessBase"]
[PlyCount "98"]
[EventDate "2021.04.19"]
[EventType "swiss"]
[EventCountry "ROU"]
[SourceTitle "playchess.com"]
[Source "ChessBase"]
[SourceQuality "1"]
[TimeControl "5400+30"]

1. d4 {[%emt 0:00:00]} Nf6 {[%emt 0:21:24]} 2. Bf4 {[%emt 0:00:00]} e6 {[%emt 0:05:31]} 3. Nf3 {[%emt 0:00:12]} b6 {[%emt 0:00:25]} 4. e3 {[%emt 0:00:20]} Bb7 {[%emt 0:00:04]} 5. Bd3 {[%emt 0:00:26]} c5 {[%emt 0:00:06]} 6. c3 {[%emt 0:00:12]} Be7 {[%emt 0:00:04]} 7. Nbd2 {[%emt 0:00:32]} cxd4 {[%emt 0:00:09]} 8. exd4 {[%emt 0:01:21]} O-O {[%emt 0:00:09]} 9. O-O {[%emt 0:08:00]} d6 {[%emt 0:00:22]} 10. Ng5 {[%emt 0:14:37]} e5 {[%emt 0:04:10]} 11. Bg3 {[%emt 0:04:12]} h6 {[%emt 0:02:10]} 12. Nge4 {[%emt 0:01:32]} Nxe4 {[%emt 0:00:49]} 13. Nxe4 {[%emt 0:10:27]} f5 {[%emt 0:01:02]} 14. Nxd6 {[%emt 0:01:01]} Qxd6 {[%emt 0:02:59]} 15. Bxe5 {[%emt 0:00:46]} Qc6 {[%emt 0:02:02]} 16. Qb3+ {[%emt 0:02:33]} Kh8 {[%emt 0:00:31]} 17. f3 {[%emt 0:00:21]} Nd7 {[%emt 0:00:52]} 18. Bb5 {[%emt 0:04:54]} Qc8 {[%emt 0:00:42]} 19. Bxg7+ {[%emt 0:01:14]} Kxg7 {[%emt 0:01:12]} 20. Qe6 {[%emt 0:00:11]} Qd8 {[%emt 0:03:18]} 21. Rfe1 {[%emt 0:02:55]} Bh4 {[%emt 0:06:30]} 22. g3 {[%emt 0:03:24]} Qg5 {[%emt 0:02:26]} 23. Bxd7 {[%emt 0:29:41]} Bxg3 {[%emt 0:03:59]} 24. Qe7+ {[%emt 0:00:47]} Rf7 {[%emt 0:00:07]} 25. Qxg5+ {[%emt 0:00:25]} hxg5 {[%emt 0:00:04]} 26. hxg3 {[%emt 0:00:36]} Rxd7 {[%emt 0:00:05]} 27. Kf2 {[%emt 0:01:40]} g4 {[%emt 0:00:57]} 28. fxg4 {[%emt 0:00:44]} fxg4 {[%emt 0:00:05]} 29. Re5 {[%emt 0:00:27]} Rf7+ {[%emt 0:00:49]} 30. Ke2 {[%emt 0:00:15]} Raf8 {[%emt 0:02:20]} 31. d5 {[%emt 0:03:52]} Rf5 {[%emt 0:00:47]} 32. Re7+ {[%emt 0:00:33]} R8f7 {[%emt 0:00:10]} 33. Rxf7+ {[%emt 0:00:15]} Kxf7 {[%emt 0:00:04]} 34. c4 {[%emt 0:00:36]} Ba6 {[%emt 0:00:09]} 35. b3 {[%emt 0:01:09]} Rxd5 {[%emt 0:00:16]} 36. Rf1+ {[%emt 0:00:25]} Ke6 {[%emt 0:01:42]} 37. Rf4 {[%emt 0:01:26]} Rg5 {[%emt 0:00:39]} 38. Kd3 {[%emt 0:00:44]} Bb7 {[%emt 0:00:48]} 39. b4 {[%emt 0:00:48]} Bf3 {[%emt 0:00:23]} 40. Rd4 {[%emt 0:01:48]} Rg7 {[%emt 0:03:13]} 41. Ke3 {[%emt 0:00:10]} Rd7 {[%emt 0:00:24]} 42. Rxd7 {[%emt 0:01:04]} Kxd7 {[%emt 0:00:02]} 43. Kf4 {[%emt 0:00:09]} Be2 {[%emt 0:00:26]} 44. a3 {[%emt 0:00:07]} Kd6 {[%emt 0:01:32]} 45. Kf5 {[%emt 0:00:30]} Kc6 {[%emt 0:00:54]} 46. Kg5 {[%emt 0:00:23]} Bxc4 {[%emt 0:00:08]} 47. Kxg4 {[%emt 0:00:04]} Kb5 {[%emt 0:00:03]} 48. Kf5 {[%emt 0:00:04]} Ka4 {[%emt 0:00:04]} 49. g4 {[%emt 0:00:06]} Kxa3 {[%emt 0:00:05]} 0-1

[Event "ROU-ch Open 2021"]
[Site "Iasi"]
[Date "2021.04.25"]
[Round "9.18"]
[White "Nastore, Pavel-Alexandru"]
[Black "Ciorgovean, Iustin"]
[Result "1/2-1/2"]
[ECO "B96"]
[WhiteElo "2256"]
[BlackElo "2338"]
[Annotator "RC"]
[PlyCount "91"]
[EventDate "2021.04.19"]
[EventType "swiss"]
[EventCountry "ROU"]
[SourceTitle "playchess.com"]
[Source "ChessBase"]
[SourceQuality "1"]
[TimeControl "5400+30"]

1. e4 {[%emt 0:00:00]} c5 {[%emt 0:00:00]} 2. Nf3 {[%emt 0:00:00]} d6 {[%emt 0:00:00]} 3. d4 {[%emt 0:00:00]} cxd4 {[%emt 0:00:00]} 4. Nxd4 {[%emt 0:00:02]} Nf6 {[%emt 0:00:00]} 5. Nc3 {[%emt 0:00:08]} a6 {[%emt 0:00:00]} 6. Bg5 {[%emt 0:00:06]} e6 {[%emt 0:00:00]} 7. f4 {[%emt 0:00:06]} h6 {[%emt 0:00:00]} 8. Bh4 {[%emt 0:00:06]} Qb6 {[%emt 0:00:00]} 9. a3 {[%emt 0:00:05]} Nbd7 {[%emt 0:00:00]} 10. Bc4 {[%emt 0:00:52]} Be7 {[%emt 0:07:28]} 11. Bf2 {[%emt 0:00:08]} Qc7 {[%emt 0:00:14]} 12. Bxe6 {[%emt 0:00:08]} fxe6 {[%emt 0:00:24]} 13. Nxe6 {[%emt 0:00:05]} Qc4 {[%emt 0:00:27]} 14. Nxg7+ {[%emt 0:00:09]} Kf8 {[%emt 0:20:29]} 15. Nf5 {[%emt 0:07:03]} Nxe4 {[%emt 0:03:41]} 16. Qd4 {[%emt 0:05:05]} Qxd4 {[%emt 0:01:31]} 17. Bxd4 {[%emt 0:00:17]} Nef6 {[%emt 0:06:21]} 18. O-O-O {[%emt 0:00:27]} Rh7 {[%emt 0:04:26]} 19. Rhe1 {[%emt 0:09:58]} b5 {[%emt 0:03:10]} 20. h3 {[%emt 0:08:59]} h5 {[%emt 0:03:32]} 21. g4 {[%emt 0:04:50]} hxg4 {[%emt 0:06:13]} 22. hxg4 {[%emt 0:00:14]} Nxg4 {[%emt 0:05:17]} 23. Nd5 {[%emt 0:00:31]} Bh4 {[%emt 0:18:02]} 24. Nxh4 {[%emt 0:19:29]} Rxh4 {[%emt 0:00:24]} 25. Nc7 {[%emt 0:00:04]} Bb7 {[%emt 0:07:40]} 26. Nxa8 {[%emt 0:00:05]} Bxa8 {[%emt 0:00:02]} 27. Bg7+ {[%emt 0:00:07]} Kxg7 {[%emt 0:02:08]} 28. Re7+ {[%emt 0:00:06]} Kf6 {[%emt 0:00:50]} 29. Rxd7 {[%emt 0:00:06]} Kf5 {[%emt 0:00:43]} 30. R7xd6 {[%emt 0:01:06]} Be4 {[%emt 0:01:01]} 31. b3 {[%emt 0:02:09]} Ne3 {[%emt 0:01:51]} 32. Re1 {[%emt 0:00:27]} Ng2 {[%emt 0:01:39]} 33. Red1 {[%emt 0:02:33]} Kxf4 {[%emt 0:00:31]} 34. Rxa6 {[%emt 0:01:16]} Ne3 {[%emt 0:00:13]} 35. Re1 {[%emt 0:00:06]} Rh2 {[%emt 0:00:40]} 36. Rf6+ {[%emt 0:00:25]} Nf5 {[%emt 0:00:32]} 37. Rxe4+ {[%emt 0:04:36]} Kxe4 {[%emt 0:00:06]} 38. a4 {[%emt 0:02:39]} bxa4 {[%emt 0:00:31]} 39. bxa4 {[%emt 0:00:07]} Nd4 {[%emt 0:00:09]} 40. Kb1 {[%emt 0:02:14]} Rxc2 {[%emt 0:00:35]} 41. a5 {[%emt 0:01:35]} Kd3 {[%emt 0:00:46]} 42. a6 {[%emt 0:00:46]} Kc3 {[%emt 0:01:02]} 43. Rb6 {[%emt 0:00:05]} Re2 {[%emt 0:02:14]} 44. a7 {[%emt 0:00:33]} Re1+ {[%emt 0:00:41]} 45. Ka2 {[%emt 0:00:06]} Re2+ {[%emt 0:00:06]} 46. Kb1 {[%emt 0:02:26]} 1/2-1/2

[Event "ROU-ch Open 2021"]
[Site "Iasi"]
[Date "2021.04.25"]
[Round "9.20"]
[White "Gheorghiu, Calin"]
[Black "Bonciu, David"]
[Result "1-0"]
[ECO "D90"]
[WhiteElo "2283"]
[BlackElo "2016"]
[Annotator "RC"]
[PlyCount "45"]
[EventDate "2021.04.19"]
[EventType "swiss"]
[EventCountry "ROU"]
[SourceTitle "playchess.com"]
[Source "ChessBase"]
[SourceQuality "1"]
[TimeControl "5400+30"]

1. c4 {[%emt 0:03:09]} g6 {[%emt 0:00:00]} 2. d4 {[%emt 0:03:41]} Nf6 {[%emt 0:00:00]} 3. Nf3 {[%emt 0:02:00]} Bg7 {[%emt 0:00:05]} 4. e3 {[%emt 0:00:11]} O-O {[%emt 0:00:09]} 5. Be2 {[%emt 0:00:04]} d5 {[%emt 0:00:15]} 6. cxd5 {[%emt 0:03:16]} Nxd5 {[%emt 0:00:06]} 7. e4 {[%emt 0:00:04]} Nb6 {[%emt 0:00:55]} 8. Nc3 {[%emt 0:06:30]} Bg4 {[%emt 0:04:15]} 9. Be3 {[%emt 0:00:52]} Bxf3 {[%emt 0:07:38]} 10. Bxf3 {[%emt 0:07:20]} e5 {[%emt 0:08:54]} 11. d5 {[%emt 0:01:30]} N8d7 {[%emt 0:13:42]} 12. Qb3 {[%emt 0:03:31]} a5 {[%emt 0:06:57]} 13. O-O {[%emt 0:08:21]} Qe7 {[%emt 0:03:14]} 14. Nb5 {[%emt 0:06:26]} Rfc8 {[%emt 0:14:47]} 15. Bg4 {[%emt 0:01:45]} a4 {[%emt 0:02:32]} 16. Qd3 {[%emt 0:12:27]} f5 {[%emt 0:03:21]} 17. exf5 {[%emt 0:13:39]} Qb4 {[%emt 0:02:18]} 18. f6 {[%emt 0:04:40]} Qxg4 {[%emt 0:02:48]} 19. fxg7 {[%emt 0:00:00]} Qf5 20. Qd2 {[%emt 0:10:40]} Nc4 {[%emt 0:03:33]} 21. Qb4 {[%emt 0:00:00]} Qg4 {[%emt 0:01:47]} 22. f3 {[%emt 0:00:00]} Qh4 {[%emt 0:03:44]} 23. g3 {[%emt 0:00:00]} 1-0